bitfinex/quotes_ETHUSD_20250711
["timestamp","ask_amount","ask_price","bid_price","bid_amount"]
[1752242408672,5.10418867,3005.4,3004.8,3.49357148]
[1752242408983,0.55,3005.3,3004.9,3.32782379]
[1752242409153,0.1656,3005.4,3005.3,3.32745482]
[1752242409354,0.1656,3005.8,3005.4,10.0]
[1752242409744,0.1656,3005.8,3005.3,0.1656]
[1752242409945,0.1656,3005.8,3005.4,10.0]
[1752242410173,0.1656,3005.8,3005.3,0.1656]
[1752242410475,3.87715504,3005.6,3004.9,3.32788452]
[1752242410650,0.1656,3005.5,3004.9,10.1656]
[1752242410849,3.32737894,3005.4,3004.7,13.32803797]
[1752242411051,0.1656,3005.2,3004.7,13.49443797]
[1752242411439,0.4723,3005.1,3004.7,0.1664]
[1752242411644,0.1664,3004.8,3004.3,0.1664]
[1752242411886,0.1664,3004.8,3004.4,3.3283882]
[1752242412088,0.1664,3004.8,3004.3,3.49492593]
[1752242412288,3.49451837,3004.8,3004.3,10.1664]
[1752242412470,3.32789015,3005.0,3004.1,0.45883197]
[1752242412471,0.55,3004.6,3004.1,0.45883197]
[1752242412788,3.32903106,3003.9,3003.5,4.30545234]
[1752242412942,0.6031,3003.8,3003.5,4.13905234]
[1752242413145,0.7164,3003.6,3003.2,4.13905234]
[1752242413345,4.04575869,3003.6,3003.2,4.13905234]
[1752242413544,4.04575869,3003.6,3003.0,3.49637277]
[1752242413545,0.1664,3003.6,3003.5,13.32944897]
[1752242413766,0.1664,3004.0,3003.6,13.32927238]
[1752242414078,0.1664,3004.0,3003.5,0.1664]
[1752242414543,6.098,3004.2,3002.9,1.07086928]
[1752242414544,0.1664,3003.7,3003.3,3.32965583]
[1752242414749,0.4367,3003.7,3003.3,10.0]
[1752242414957,0.1664,3003.6,3003.0,0.1664]
[1752242415141,0.1664,3003.6,3003.1,3.32980128]
[1752242415343,5.544,3004.0,3003.6,10.0]
[1752242415548,5.9797,3004.5,3003.7,0.03329227]
[1752242415781,0.1664,3004.4,3004.3,10.0]
[1752242415959,0.1664,3004.4,3004.2,3.32858289]
[1752242416147,0.6031,3004.4,3004.2,3.32866352]
[1752242416343,0.1664,3004.4,3004.3,3.32856239]
[1752242416961,5.543,3004.5,3004.2,3.32860536]
[1752242417356,5.543,3004.5,3004.4,3.3284516]
[1752242418047,6.3661,3004.7,3003.9,1.0]
[1752242418251,6.3661,3004.7,3003.9,11.03329005]
[1752242418582,6.35944121,3004.7,3004.2,3.32859747]
[1752242418769,0.4367,3004.6,3004.2,3.32859747]
[1752242419496,5.531,3004.7,3004.5,3.32834082]
[1752242419785,5.9677,3004.7,3004.4,3.32841855]
[1752242419994,5.9677,3004.7,3004.0,0.03328894]
[1752242420152,5.9677,3004.7,3004.3,3.32853443]
[1752242420353,5.9677,3004.7,3003.8,4.13938382]
[1752242420354,0.4367,3004.6,3004.2,3.32860633]
[1752242420550,0.4367,3004.6,3004.3,3.3285426]
[1752242420788,0.4367,3004.6,3004.3,3.32851683]
[1752242420988,0.4367,3004.6,3003.8,0.8103]
[1752242421189,0.4367,3004.6,3003.8,1.77684464]
[1752242421370,0.4367,3004.6,3004.2,3.32864228]
[1752242421864,0.7571,3004.9,3004.2,3.32867319]
[1752242422065,7.93,3005.0,3004.7,3.32806399]
[1752242422386,0.4367,3004.9,3004.4,3.32836172]
[1752242422587,11.25780982,3005.0,3004.5,3.32833259]
[1752242422588,0.4367,3004.8,3004.5,3.32833259]
[1752242422828,7.93,3005.0,3004.5,3.32826863]
[1752242422956,7.93,3005.0,3004.5,3.32825002]
[1752242423280,7.93,3005.0,3004.7,3.32806132]
[1752242423453,7.93,3005.0,3004.5,3.328232]
[1752242423657,0.4367,3004.9,3004.4,3.32842488]
[1752242423865,0.4367,3004.9,3003.9,5.513]
[1752242423866,0.4367,3004.8,3003.9,5.513]
[1752242424084,0.4367,3004.8,3004.3,3.32850075]
[1752242424391,0.4367,3004.8,3004.0,3.32886458]
[1752242424558,5.512,3004.7,3003.8,0.8103]
[1752242424754,0.7571,3004.5,3003.6,3.32933812]
[1752242424960,0.4367,3004.4,3003.5,13.32944897]
[1752242425159,0.4367,3004.4,3004.1,3.32870811]
[1752242425368,5.509,3004.5,3003.8,3.32911645]
[1752242425686,5.9457,3004.5,3003.5,1.8838449]
[1752242425888,0.4367,3004.4,3003.0,3.32992838]
[1752242426093,3.32879653,3004.1,3003.5,3.32934999]
[1752242426281,5.9417,3004.1,3003.1,10.8046]
[1752242426490,17.20052439,3004.1,3003.3,13.32964347]
[1752242426686,3.32890247,3004.0,3003.5,3.32937661]
[1752242426898,0.1664,3003.8,3003.5,3.32937661]
[1752242427077,13.434,3004.1,3003.7,3.32922728]
[1752242427283,0.1664,3004.0,3003.9,3.32900562]
[1752242427604,0.1664,3004.0,3003.5,3.49581077]
[1752242427605,13.432,3004.1,3003.7,3.32915984]
[1752242427901,13.432,3004.1,3003.8,3.3291018]
[1752242428102,13.8687,3004.1,3003.8,3.3291018]
[1752242428297,13.8687,3004.1,3003.6,0.1664]
[1752242428498,13.8687,3004.1,3003.7,3.32922728]
[1752242428700,0.4367,3004.0,3003.1,0.8046]
[1752242428900,0.4367,3004.0,3002.7,0.25232081]
[1752242428901,3.49563197,3003.7,3003.2,3.49618156]
[1752242429089,0.6031,3003.7,3003.3,3.32960147]
[1752242429293,0.6031,3003.7,3003.2,0.1664]
[1752242429294,0.4367,3003.6,3003.2,0.1664]
[1752242429606,4.2806186,3003.5,3002.9,3.49643078]
[1752242429801,4.28058687,3003.5,3002.9,0.1664]
[1752242430008,3.32955983,3003.4,3002.9,0.1664]
[1752242430165,5.495,3003.3,3002.6,0.001]
[1752242430371,3.33033603,3002.7,3002.6,0.001]
[1752242430667,0.8317,3002.7,3002.6,0.001]
[1752242430866,5.494,3002.7,3002.6,3.33144694]
[1752242431074,0.1664,3003.3,3003.2,3.32976775]
[1752242431268,5.501,3003.4,3003.3,3.32967069]
[1752242431883,0.1664,3003.6,3003.3,3.32967069]
[1752242432108,5.502,3003.8,3003.7,3.32922728]
[1752242432406,7.93,3004.0,3003.8,3.32906759]
[1752242432700,0.4367,3003.9,3003.5,3.49578776]
[1752242432902,0.4367,3003.8,3003.3,0.34960707]
[1752242433105,0.4367,3003.7,3003.2,0.1664]
[1752242433403,0.1664,3003.5,3003.2,3.3297186]
[1752242433605,0.4367,3003.4,3002.9,3.33009464]
[1752242433766,0.1664,3003.2,3002.7,0.9194]
[1752242433966,0.6031,3003.2,3002.7,0.1664]
[1752242434178,0.1664,3003.2,3002.8,3.33020223]
[1752242434382,0.1664,3003.2,3002.9,3.33008766]
[1752242434708,0.1664,3003.2,3002.7,3.49669784]
[1752242434914,0.4367,3003.1,3002.6,0.001]
[1752242435097,0.1664,3002.7,3002.6,0.001]
[1752242435409,3.49673603,3002.7,3002.6,0.001]
[1752242435612,3.93343603,3002.7,3002.6,0.001]
[1752242435910,0.1664,3002.7,3002.6,0.001]
[1752242437108,5.49,3002.8,3002.6,0.001]
[1752242437109,5.488,3002.8,3002.6,0.001]
[1752242437414,5.488,3002.8,3002.7,3.33033603]
[1752242437600,5.488,3002.8,3002.6,3.33137808]
[1752242437834,5.488,3002.8,3002.6,0.001]
[1752242437979,5.488,3002.8,3002.7,3.33033603]
[1752242438294,0.1664,3002.9,3002.8,3.33022512]
[1752242438497,5.487,3002.9,3002.8,3.33022512]
[1752242438702,5.487,3002.9,3002.6,0.1674]
[1752242438875,5.487,3002.9,3002.6,0.001]
[1752242438876,4.14633603,3002.7,3002.6,0.001]
[1752242439080,0.816,3002.7,3002.6,0.001]
[1752242439408,5.481,3002.8,3002.6,0.001]
[1752242440088,8.81111856,3002.9,3002.6,0.001]
[1752242440290,5.481,3002.9,3002.6,0.001]
[1752242440808,0.4367,3002.8,3002.6,0.001]
[1752242440976,3.49608949,3003.3,3002.7,0.1664]
[1752242441182,8.81784731,3003.2,3002.7,0.1664]
[1752242441622,0.4367,3003.1,3002.7,0.1664]
[1752242441823,5.488,3003.2,3002.7,0.1664]
[1752242442016,0.4367,3003.0,3002.7,0.1664]
[1752242442415,0.4367,3003.0,3002.7,3.49671573]
[1752242442789,0.4367,3003.0,3002.7,0.1664]
[1752242442995,3.76854587,3002.9,3002.6,0.001]
[1752242443196,9.41693751,3002.9,3002.6,0.001]
[1752242443396,3.33033603,3002.7,3002.6,0.001]
[1752242443625,4.28643603,3002.7,3002.6,0.001]
[1752242443928,4.72483603,3002.7,3002.6,0.001]
[1752242444519,1.3945,3002.7,3002.6,0.001]
[1752242444823,5.6444,3002.7,3002.6,0.001]
[1752242445024,0.1664,3002.7,3002.6,0.001]
[1752242445226,5.477,3002.9,3002.7,3.33033036]
[1752242445433,5.477,3002.9,3002.6,3.3313872]
[1752242445610,5.477,3002.9,3002.6,0.001]
[1752242445806,5.477,3002.9,3002.7,3.33024672]
[1752242446011,5.477,3002.9,3002.6,3.3313369]
[1752242446206,5.477,3002.9,3002.7,3.33032566]
[1752242446411,5.477,3002.9,3002.8,3.33022512]
[1752242446809,5.477,3002.9,3002.6,0.001]
[1752242447010,5.9154,3002.9,3002.7,3.33031327]
[1752242447311,5.9074,3002.9,3002.6,3.33139812]
[1752242447632,5.9074,3002.9,3002.6,0.001]
[1752242447861,0.4384,3002.8,3002.6,0.001]
[1752242447993,0.6048,3002.8,3002.6,0.001]
[1752242448327,0.4384,3002.7,3002.6,0.001]
[1752242448527,0.1664,3002.8,3002.6,0.001]
[1752242448726,0.4384,3002.7,3002.6,0.001]
[1752242449342,3.76873603,3002.7,3002.6,0.001]
[1752242449711,5.14663603,3002.7,3002.6,0.001]
[1752242449911,15.14663603,3002.7,3002.6,0.001]
[1752242451954,20.60363603,3002.7,3002.6,0.001]
[1752242452334,20.60363603,3002.7,3002.6,1e-08]
[1752242453638,20.59763603,3002.7,3002.6,1e-08]
[1752242455115,0.8279,3002.7,3002.6,1e-08]
[1752242455316,8.78133603,3002.7,3002.6,1e-08]
[1752242455517,9.21973603,3002.7,3002.6,1e-08]
[1752242455956,5.8894,3002.7,3002.6,1e-08]
[1752242456545,8.78133603,3002.7,3002.6,1e-08]
[1752242456731,9.21973603,3002.7,3002.6,1e-08]
[1752242457053,5.8894,3002.7,3002.6,1e-08]
[1752242457624,0.1664,3002.8,3002.6,1e-08]
[1752242457823,5.442,3002.7,3002.6,1e-08]
[1752242458527,0.1664,3002.8,3002.7,3.33033603]
[1752242458733,5.434,3002.8,3002.6,3.33040737]
[1752242459138,0.1664,3003.0,3002.9,3.33011422]
[1752242459342,5.432,3003.1,3002.9,3.66308233]
[1752242459522,5.432,3003.1,3002.9,0.33301142]
[1752242459724,5.432,3003.1,3003.0,3.33000333]
[1752242460623,5.432,3003.1,3002.7,0.1664]
[1752242460955,4.09773603,3002.7,3002.6,1e-08]
[1752242461119,20.07673603,3002.7,3002.6,1e-08]
[1752242461324,20.51513603,3002.7,3002.6,1e-08]
[1752242461832,3.33133453,3001.8,3001.7,0.001]
[1752242462033,3.88166749,3001.5,3000.4,0.24515907]
[1752242462231,3.33243212,3000.9,3000.2,5.91293192]
[1752242462431,5.429,3000.8,3000.0,0.7697]
[1752242463056,0.4384,3000.7,2999.7,0.24800569]
[1752242463357,0.4384,3000.7,2999.5,0.7697]
[1752242463358,3.33339717,3000.0,2999.5,0.7697]
[1752242463560,5.8704,2999.9,2999.3,3.33407378]
[1752242463721,5.8704,2999.9,2999.2,6.37251351]
[1752242463722,9.2038525,2999.9,2999.2,11.4459887]
[1752242463918,5.8704,2999.9,2999.3,3.33401308]
[1752242464151,0.775,3000.2,2999.2,2.1989336]
[1752242464354,5.43,3000.3,2999.3,0.29935336]
[1752242464530,5.43,3000.8,2999.8,10.0]
[1752242464731,5.43,3000.8,2999.9,3.36667022]
[1752242464942,5.43,3000.8,3000.6,3.33266502]
[1752242465136,5.43,3000.8,2999.8,13.33348099]
[1752242465467,0.4384,3000.7,3000.0,3.33326818]
[1752242465678,3.33266679,3000.6,2999.5,0.7543]
[1752242465823,0.8122,3000.3,2999.5,0.7543]
[1752242466025,5.431,3000.2,2999.5,0.7543]
[1752242466222,3.77164422,3000.1,2999.5,3.33382128]
[1752242466472,0.4384,3000.1,2999.6,3.33377574]
[1752242466672,0.4384,3000.0,2999.8,3.33348016]
[1752242466969,5.431,3000.2,2999.3,3.33411129]
[1752242466970,5.43,3000.2,2999.4,0.03334]
[1752242467153,5.43,3000.2,2999.4,1.03687859]
[1752242467355,5.43,3000.2,2999.7,3.33359791]
[1752242467537,5.43,3000.2,2999.5,3.33388898]
[1752242467736,5.43,3000.2,2999.8,3.3334856]
[1752242467949,5.8684,3000.2,2999.6,3.33370775]
[1752242468150,5.8684,3000.2,2999.6,3.33366762]
[1752242468478,5.8684,3000.2,3000.0,3.33326018]
[1752242468776,5.43,3000.2,3000.1,3.33322222]
[1752242468989,5.43,3000.2,2999.2,0.49292381]
[1752242468990,5.43,3000.2,2999.4,3.33400013]
[1752242469261,5.429,3000.5,3000.4,3.33288894]
[1752242469560,5.429,3000.5,3000.3,3.33292834]
[1752242469858,5.429,3000.5,3000.4,3.33288894]
[1752242470369,5.429,3000.5,2999.6,0.44448727]
[1752242470727,5.429,3000.5,3000.4,3.33288894]
[1752242471163,5.426,3000.6,3000.5,3.33277787]
[1752242471324,0.1664,3000.9,3000.8,3.33244468]
[1752242471730,5.425,3001.2,3001.0,3.33217872]
[1752242471943,0.4384,3001.1,3000.2,0.7665]
[1752242472143,0.1664,3000.9,3000.3,3.49937917]
[1752242472636,6.2119,3001.0,3000.3,3.3329106]
[1752242472637,0.4384,3000.8,3000.3,3.3329106]
[1752242472836,0.1664,3000.6,3000.0,3.49970562]
[1752242473070,5.425,3000.5,3000.0,0.1664]
[1752242473280,5.425,3000.5,2999.6,0.44448727]
[1752242473281,4.15041699,3000.3,2999.4,0.8134]
[1752242473578,0.1664,2999.9,2999.4,0.1664]
[1752242473882,0.1664,2999.7,2999.2,0.45958159]
[1752242474046,0.4649,2999.6,2999.2,0.45958159]
[1752242474367,5.424,2999.6,2999.2,0.45958159]
[1752242474732,1.2644,2999.5,2999.2,0.45958159]
[1752242474932,3.33429294,2999.2,2998.8,0.1664]
[1752242475170,6.0513,2999.1,2998.5,0.1664]
[1752242475374,0.6313,2999.1,2998.5,0.1664]
[1752242475558,5.42,2999.0,2998.8,3.33456916]
[1752242475773,5.42,2999.0,2998.6,3.33479303]
[1752242475774,0.1664,2999.3,2998.7,0.1664]
[1752242475974,1.2896,2999.9,2999.4,3.33394911]
[1752242476172,0.1664,2999.7,2999.4,3.33393638]
[1752242476479,3.79875728,2999.6,2999.0,3.33438351]
[1752242476645,0.6313,2999.6,2999.1,3.33431777]
[1752242476840,0.1664,2999.4,2999.3,3.33403152]
[1752242477039,5.423,2999.4,2999.3,3.33403152]
[1752242477451,0.1664,2999.6,2999.5,3.33388898]
[1752242477767,0.8247,2999.9,2999.6,3.33377783]
[1752242477768,5.5894,2999.7,2999.6,3.33377783]
[1752242479050,5.5894,2999.7,2999.5,3.33383912]
[1752242479261,5.5894,2999.7,2999.6,3.33377783]
[1752242479484,5.5894,2999.7,2999.2,0.19974222]
[1752242479646,5.5894,2999.7,2999.5,3.33387412]
[1752242480002,0.6313,3000.9,3000.4,3.33281238]
[1752242480152,5.9169,3000.8,3000.4,3.33288102]
[1752242480353,0.4649,3000.7,2999.9,0.1664]
[1752242480585,0.1664,3000.7,3000.6,3.33266679]
[1752242480961,0.1664,3000.7,3000.4,6.6655631]
[1752242480962,5.452,3000.8,3000.7,3.33255573]
[1752242481158,5.9169,3000.8,3000.4,0.1664]
[1752242481388,5.9169,3000.8,3000.4,3.33287796]
[1752242481389,0.8141,3000.6,3000.4,3.33287796]
[1752242481567,0.1664,3000.4,3000.2,3.33302662]
[1752242482090,6.0823,3000.4,2999.9,0.1664]
[1752242482394,0.4649,3000.3,2999.9,3.49976168]
[1752242482558,0.4649,3000.2,2999.9,0.1664]
[1752242482750,0.1664,2999.9,2999.4,3.50033083]
[1752242482953,0.4649,2999.8,2999.3,3.33405789]
[1752242483186,0.6313,2999.7,2999.4,3.33398793]
[1752242483479,0.6313,2999.7,2999.5,3.33379265]
[1752242483648,5.448,2999.8,2999.1,4.10867832]
[1752242483852,5.448,2999.8,2999.7,3.3336667]
[1752242485053,5.448,2999.8,2999.4,0.1664]
[1752242485054,5.448,2999.8,2999.6,3.33373852]
[1752242485268,5.448,2999.8,2999.7,3.3336667]
[1752242485468,5.9129,2999.8,2999.4,0.1664]
[1752242485681,5.9129,2999.8,2999.1,0.7744]
[1752242485682,3.3336897,2999.7,2999.1,4.10870556]
[1752242485985,0.1664,2999.6,2999.2,3.33420605]
[1752242486184,0.6313,2999.6,2999.2,3.33420605]
[1752242486481,0.1664,2999.6,2999.1,0.9408]
[1752242486889,0.1664,2999.6,2999.5,3.33388898]
[1752242487583,5.448,2999.8,2999.7,3.3336667]
[1752242487781,1.279,3000.2,2999.9,3.33335093]
[1752242488088,0.1664,3000.0,2999.5,0.1664]
[1752242488291,0.1664,3000.0,2999.8,3.33347383]
[1752242488292,5.433,2999.9,2999.8,3.33347383]
[1752242488673,5.432,3000.2,2999.7,0.1664]
[1752242488856,5.432,3000.2,3000.0,3.33322465]
[1752242489268,5.432,3000.2,2999.7,0.1664]
[1752242489485,5.8969,3000.2,2999.8,3.3334994]
[1752242489691,0.4649,3000.1,2999.1,6.2034]
[1752242489891,0.1664,2999.9,2999.8,3.33355557]
[1752242490080,0.1664,2999.9,2999.7,3.33362175]
[1752242490492,0.1664,2999.9,2999.4,0.1664]
[1752242490682,0.1664,2999.9,2999.1,0.7744]
[1752242490683,0.1664,2999.7,2999.2,0.1664]
[1752242490888,0.1664,2999.7,2999.5,3.33382972]
[1752242491062,0.1664,2999.7,2999.6,3.33377783]
[1752242491266,5.427,3000.1,3000.0,3.33333333]
[1752242492159,0.1664,3000.6,2999.9,4.25183875]
[1752242492160,5.424,3000.4,3000.3,3.33293129]
[1752242492365,0.1664,3000.6,3000.3,3.33293129]
[1752242492591,0.4649,3001.4,3000.9,3.33233363]
[1752242492800,0.4649,3001.4,3001.0,3.33216294]
[1752242492957,3.33094188,3002.2,3000.5,4.13460564]
[1752242492958,0.4649,3001.9,3000.7,10.0]
[1752242493160,5.8949,3001.9,3001.4,3.3317045]
[1752242493398,3.33152027,3001.7,3001.1,3.33203582]
[1752242493574,3.796263,3001.8,3001.2,3.33197222]
[1752242493975,3.33144891,3001.7,3001.1,3.33206324]
[1752242494277,0.4649,3001.8,3000.7,1.4101103]
[1752242494475,0.4649,3001.8,3001.2,3.33193954]
[1752242494800,3.33157536,3001.6,3000.7,10.0]
[1752242494998,0.7658,3001.4,3000.5,6.1945]
[1752242495198,4.0976578,3001.4,3000.8,3.33238208]
[1752242495401,3.3319289,3001.3,3000.7,3.33253091]
[1752242495567,4.09759853,3001.4,3000.8,3.33242522]
[1752242495764,3.33191821,3001.3,3000.7,3.33248997]
[1752242496165,3.79699534,3001.2,3000.4,3.33280474]
[1752242496416,5.422,3001.1,3000.7,3.33248743]
[1752242496694,5.422,3001.1,3000.9,3.33223166]
[1752242496859,5.422,3001.1,3000.8,3.33239834]
[1752242497183,3.79712474,3001.0,3000.4,3.3327964]
[1752242497386,0.4649,3001.0,3000.2,10.7685]
[1752242497698,0.4649,3001.3,3000.4,0.03332888]
[1752242497886,0.4649,3001.3,3000.2,10.7685]
[1752242497887,5.416,3001.2,3000.7,3.33249316]
[1752242498201,5.8809,3001.2,3000.8,3.33244179]
[1752242498372,5.415,3001.1,3000.2,14.10157269]
[1752242498576,5.415,3001.1,3000.3,1.41041727]
[1752242498900,5.415,3001.1,3000.2,0.7685]
[1752242499107,0.771,3000.9,2999.8,0.7791]
[1752242499398,3.33276481,3000.6,3000.0,3.33325648]
[1752242499699,0.771,3000.9,2999.8,10.7791]
[1752242499700,5.415,3000.5,2999.8,10.7791]
[1752242499998,3.33288894,3000.4,2999.6,0.33337778]
[1752242500167,4.09775611,3000.2,2999.5,0.7747]
[1752242500369,0.7646,3000.2,2999.6,3.33369559]
[1752242500569,4.09777721,3000.2,2999.6,3.33369559]
[1752242500877,0.7646,3000.2,2999.8,3.33345698]
[1752242501275,5.415,3000.5,2999.7,0.03333666]
[1752242501276,0.7868,3000.5,2999.7,0.03333666]
[1752242501583,0.7868,3000.5,2999.2,0.7719]
[1752242501584,0.4649,3000.2,2999.2,0.7719]
[1752242501795,3.79805938,3000.2,2999.5,3.33381111]
[1752242502007,3.33324915,3000.1,2999.3,3.33408965]
[1752242502175,3.33362741,2999.8,2998.9,4.14962603]
[1752242502507,6.3622,2999.8,2999.3,0.1664]
[1752242502709,6.8001,2999.8,2999.3,0.1664]
[1752242503097,3.33377783,2999.6,2998.9,4.14959208]
[1752242503308,3.50017783,2999.6,2999.1,0.1664]
[1752242503509,0.4379,2999.5,2999.1,0.1664]
[1752242504409,0.4379,2999.4,2999.1,0.1664]
[1752242504608,0.4379,2999.4,2998.6,0.7734]
[1752242504609,0.6043,2999.3,2998.8,3.50100055]
[1752242505284,0.4379,2999.2,2998.5,0.001]
[1752242505612,0.9354,2999.1,2998.6,0.1664]
[1752242505981,1.3733,2999.1,2998.6,0.1664]
[1752242506300,0.6043,2999.1,2998.8,3.33458564]
[1752242506500,0.6043,2999.1,2998.7,3.3347784]
[1752242506501,0.1664,2999.1,2998.6,0.1664]
[1752242506717,0.769,2999.4,2998.6,3.33485497]
[1752242507017,5.401,2999.2,2999.1,3.33433363]
[1752242507528,5.5654,2999.4,2999.0,3.33442157]
[1752242507729,5.5654,2999.4,2998.9,4.28367944]
[1752242507879,5.5654,2999.4,2998.9,0.9492]
[1752242507880,8.8994659,2999.4,2998.9,0.9492]
[1752242508077,9.33735577,2999.4,2998.9,0.1664]
[1752242508476,3.77201829,2999.3,2998.9,0.1664]
[1752242508911,3.33468907,2998.8,2998.5,0.001]
[1752242509101,3.33468907,2998.8,2998.5,0.1674]
[1752242509421,3.77264228,2998.8,2998.5,0.1674]
[1752242509609,0.4379,2998.7,2998.5,0.1674]
[1752242509782,5.5654,2998.9,2998.5,0.001]
[1752242509984,4.56828961,2998.6,2998.5,0.001]
[1752242510291,0.9619,2998.6,2998.5,0.001]
[1752242510690,0.1664,2998.6,2998.5,0.001]
[1752242510890,5.5654,2998.6,2998.5,0.001]
[1752242511091,0.1664,2998.6,2998.5,3.33600083]
[1752242511305,5.399,2999.1,2998.6,3.33488961]
[1752242511492,5.399,2999.1,2998.7,3.33471318]
[1752242511706,5.399,2999.1,2998.5,3.83600659]
[1752242511893,5.399,2999.1,2998.5,0.001]
[1752242511894,0.4379,2999.0,2998.5,0.001]
[1752242512096,3.50110064,2998.8,2998.5,0.001]
[1752242512408,4.14638961,2998.6,2998.5,0.001]
[1752242512611,19.54538961,2998.6,2998.5,0.001]
[1752242512793,19.98328961,2998.6,2998.5,0.001]
[1752242513327,0.8115,2997.9,2997.4,0.001]
[1752242513528,3.33611342,2997.5,2997.4,0.001]
[1752242513991,3.77401342,2997.5,2997.4,0.001]
[1752242514488,3.33744952,2996.3,2996.2,0.001]
[1752242514689,3.88692684,2996.8,2996.2,0.001]
[1752242514929,18.8182,2996.9,2996.2,0.001]
[1752242514930,5.418,2996.7,2996.2,0.001]
[1752242515227,9.2561,2996.9,2996.2,0.33819577]
[1752242515228,5.418,2996.6,2996.2,0.33819577]
[1752242515532,5.418,2996.5,2996.4,3.33733813]
[1752242515914,7.998,2996.9,2996.2,0.789]
[1752242515915,1.1885,2997.3,2997.1,3.33654084]
[1752242516117,1.1885,2997.7,2997.3,3.33625149]
[1752242516289,5.417,2997.6,2996.4,13.33733813]
[1752242516489,5.417,2997.5,2996.4,10.0]
[1752242516729,5.417,2997.5,2996.4,13.33731866]
[1752242517045,5.417,2997.5,2997.4,3.33622472]
[1752242517225,5.419,2997.5,2997.4,3.33622472]
[1752242517396,5.419,2997.5,2996.7,0.84197004]
[1752242517397,5.419,2997.5,2997.3,3.33628516]
[1752242517594,8.8134,2998.0,2997.4,3.33622472]
[1752242517804,8.8134,2998.0,2996.8,0.03336892]
[1752242517805,7.998,2998.0,2997.9,3.3356683]
[1752242518012,5.417,2998.0,2997.9,3.3356683]
[1752242518406,0.8154,2998.5,2997.8,0.03335779]
[1752242518407,5.418,2998.4,2997.8,0.03335779]
[1752242518611,5.418,2998.4,2998.2,3.335334]
[1752242518822,5.418,2998.4,2997.5,0.8045]
[1752242519010,5.8559,2998.4,2998.1,3.33542141]
[1752242519312,3.33469376,2998.8,2997.5,0.8045]
[1752242519313,5.416,2998.3,2998.2,3.33533453]
[1752242519639,9.18916755,2998.3,2997.6,3.33598977]
[1752242519934,9.18916755,2998.3,2997.1,4.13635867]
[1752242519935,10.0,2998.2,2997.5,3.33607138]
[1752242520110,0.8136,2998.1,2997.1,0.7998]
[1752242520300,5.8569,2998.0,2997.1,0.7998]
[1752242520705,3.33610857,2997.6,2996.8,3.33683762]
[1752242520938,5.418,2997.5,2996.7,0.768]
[1752242521241,5.418,2997.5,2996.8,0.03336892]
[1752242521437,5.417,2997.4,2996.8,0.03336892]
[1752242521608,5.417,2997.4,2996.7,0.768]
[1752242521808,6.1969,2997.4,2996.7,0.768]
[1752242522111,0.7799,2997.8,2996.7,10.3078643]
[1752242522324,0.7799,2997.8,2996.7,0.768]
[1752242522325,5.417,2997.6,2996.7,0.768]
[1752242522532,5.417,2997.6,2997.4,3.3361357]
[1752242522846,5.417,2997.6,2996.7,0.768]
[1752242522999,5.417,2997.6,2997.1,3.33654859]
[1752242523204,0.4379,2997.5,2997.2,0.1664]
[1752242523414,5.417,2997.6,2997.3,3.33625753]
[1752242523905,3.33661977,2997.1,2996.5,3.33718528]
[1752242524104,6.1779,2997.0,2996.7,0.1664]
[1752242524311,6.7822,2997.0,2996.5,0.1664]
[1752242524511,0.1664,2996.8,2996.2,3.50488088]
[1752242524719,0.1664,2996.8,2996.2,3.33848155]
[1752242524947,0.1664,2996.8,2996.3,3.33744014]
[1752242525145,3.33741434,2996.4,2996.2,0.001]
[1752242525443,8.92184952,2996.3,2996.2,0.001]
[1752242525650,5.5844,2996.3,2996.2,0.001]
[1752242525850,6.0223,2996.3,2996.2,0.001]
[1752242526022,6.8172,2996.3,2996.2,0.001]
[1752242526644,10.15464952,2996.3,2996.2,0.001]
[1752242527048,0.9613,2996.3,2996.2,0.001]
[1752242527233,0.4379,2997.1,2996.9,3.33669781]
[1752242527434,0.1664,2996.9,2996.2,0.1674]
[1752242527606,0.1664,2996.9,2996.4,0.1664]
[1752242527809,0.7887,2997.7,2996.7,0.7668]
[1752242528038,5.419,2997.6,2996.9,3.33678134]
[1752242528242,10.0,2997.5,2997.2,0.1664]
[1752242528451,0.9551,2997.7,2997.2,0.1664]
[1752242528630,5.42,2997.6,2997.5,3.5024314]
[1752242529145,0.4379,2998.4,2997.6,0.7661]
[1752242529327,0.4379,2998.9,2997.9,3.3356683]
[1752242529533,5.5854,2998.8,2998.6,3.33488818]
[1752242529862,5.5854,2998.8,2998.2,0.19975334]
[1752242530046,5.5854,2998.8,2998.4,3.33506769]
[1752242530358,0.4379,2998.7,2998.2,0.1664]
[1752242530556,5.5854,2998.8,2997.6,3.33600097]
[1752242530557,10.0,2998.3,2997.6,3.33600097]
[1752242530714,10.0,2998.1,2996.3,0.35050047]
[1752242530919,0.1664,2997.7,2997.2,0.1664]
[1752242531229,0.1664,2997.7,2996.3,3.69248421]
[1752242531230,3.33611342,2997.5,2996.4,0.7575]
[1752242531431,0.1664,2997.2,2996.6,0.1664]
[1752242531631,5.423,2997.1,2996.7,3.33700403]
[1752242531925,5.8609,2997.1,2996.8,3.33687901]
[1752242532120,5.8609,2997.1,2996.5,0.001]
[1752242532121,13.77460087,2997.0,2996.5,0.001]
[1752242532429,5.5894,2996.9,2996.8,3.33689268]
[1752242532633,6.0259,2996.9,2996.5,0.001]
[1752242532817,0.4365,2996.8,2996.5,0.001]
[1752242533020,13.33711539,2996.6,2996.5,0.001]
[1752242533264,19.54481539,2996.6,2996.5,0.001]
[1752242533623,3.33744952,2996.3,2996.2,0.001]
[1752242533865,18.76444952,2996.3,2996.2,0.001]